fUST/lending_fUST_20260308
["ID","MTS","AMOUNT","RATE_DAILY","PERIOD"]
[407905085,1772905838900,-208.1186814,5.417e-05,2]
[407905086,1772905838909,-240.2117164,5.435e-05,2]
[407905087,1772905838919,-300.0,5.479e-05,2]
[407905088,1772905838929,-720.0,5.609e-05,2]
[407905089,1772905838939,-2000.0,5.716e-05,2]
[407905090,1772905838948,-2398.4119403,5.892e-05,2]
[407905091,1772905838958,-240.21,6.029e-05,2]
[407905092,1772905838967,-182.91,6.029e-05,2]
[407905093,1772905838977,-182.91,6.029e-05,2]
[407905094,1772905838987,-182.91,6.029e-05,2]
[407905095,1772905838997,-864.0,6.17e-05,2]
[407905096,1772905839006,-2500.0,6.264e-05,2]
[407905097,1772905839015,-2487.15318209,6.44e-05,2]
[407905098,1772905839024,-1000.0,6.787e-05,2]
[407905099,1772905839034,-3000.0,6.812e-05,2]
[407905100,1772905839043,-2579.17784983,6.988e-05,2]
[407905101,1772905839052,-3500.0,7.36e-05,2]
[407905102,1772905839061,-276.85418161,7.435e-05,2]
[407905103,1772905839070,-1000.0,7.465e-05,2]
[407905104,1772905839080,-244.0,7.465e-05,2]
[407905105,1772905839089,-2674.60743027,7.536e-05,2]
[407905106,1772905839099,-4000.0,7.908e-05,2]
[407905107,1772905839109,-2773.56790519,8.084e-05,2]
[407905108,1772905839118,-636.0,8.212e-05,2]
[407905109,1772905839127,-10894.69910171,8.374e-05,3]
[407905110,1772905839136,-4500.0,8.456e-05,2]
[407905111,1772905839146,-2876.18991768,8.632e-05,2]
[407905112,1772905839155,-1960.8923571,9.004e-05,2]
[407905113,1772905839164,-2982.60894464,9.18e-05,2]
[407905114,1772905839173,-313.49664683,9.435e-05,2]
[407905115,1772905839182,-151.0,9.589e-05,2]
[407905116,1772905839191,-155.252092,9.589e-05,2]
[407905117,1772905839201,-271.830701,9.589e-05,2]
[407905118,1772905839210,-271.830701,9.589e-05,2]
[407905119,1772905839219,-271.830701,9.589e-05,2]
[407905120,1772905839228,-271.830701,9.589e-05,2]
[407905121,1772905839238,-271.830701,9.589e-05,2]
[407905122,1772905839247,-271.830701,9.589e-05,2]
[407905123,1772905839256,-271.830701,9.589e-05,2]
[407905124,1772905839266,-271.830701,9.589e-05,2]
[407905125,1772905839275,-271.830701,9.589e-05,2]
[407905126,1772905839284,-271.830701,9.589e-05,2]
[407905127,1772905839293,-271.830701,9.589e-05,2]
[407905128,1772905839302,-271.830701,9.589e-05,2]
[407905129,1772905839311,-271.830701,9.589e-05,2]
[407905130,1772905839324,-271.830701,9.589e-05,2]
[407905131,1772905839334,-271.830701,9.589e-05,2]
[407905132,1772905839343,-271.830701,9.589e-05,2]
[407905133,1772905839352,-271.830701,9.589e-05,2]
[407905134,1772905839361,-271.830701,9.589e-05,2]
[407905135,1772905839371,-271.830701,9.589e-05,2]
[407905136,1772905839380,-271.830709,9.589e-05,2]
[407905137,1772905839390,-151.0,9.589e-05,2]
[407905138,1772905839399,-245.128044,9.589e-05,2]
[407905139,1772905839409,-151.0,9.589e-05,2]
[407905140,1772905839418,-164.836959,9.589e-05,2]
[407905141,1772905839427,-151.0,9.589e-05,2]
[407905142,1772905839437,-151.0,9.589e-05,2]
[407905143,1772905839446,-170.232095,9.589e-05,2]
[407905144,1772905839459,-151.0,9.589e-05,2]
[407905145,1772905839469,-156.790915,9.589e-05,2]
[407905146,1772905839479,-151.0,9.589e-05,2]
[407905147,1772905839488,-151.0,9.589e-05,2]
[407905148,1772905839499,-151.0,9.589e-05,2]
[407905149,1772905839508,-151.0,9.589e-05,2]
[407905150,1772905839517,-259.69649,9.589e-05,2]
[407905151,1772905839528,-166.81824,9.589e-05,2]
[407905152,1772905839537,-166.81824,9.589e-05,2]
[407905153,1772905839547,-156.916502,9.589e-05,2]
[407905154,1772905839556,-166.81824,9.589e-05,2]
[407905155,1772905839565,-166.81824,9.589e-05,2]
[407905156,1772905839574,-166.81824,9.589e-05,2]
[407905157,1772905839584,-166.81824,9.589e-05,2]
[407905158,1772905839594,-166.81824,9.589e-05,2]
[407905159,1772905839603,-166.81824,9.589e-05,2]
[407905160,1772905839612,-166.81824,9.589e-05,2]
[407905161,1772905839621,-166.81824,9.589e-05,2]
[407905162,1772905839631,-166.81824,9.589e-05,2]
[407905163,1772905839640,-166.81824,9.589e-05,2]
[407905164,1772905839649,-166.81824,9.589e-05,2]
[407905165,1772905839658,-166.81824,9.589e-05,2]
[407905166,1772905839668,-166.81824,9.589e-05,2]
[407905167,1772905839677,-166.81824,9.589e-05,2]
[407905168,1772905839686,-166.81824,9.589e-05,2]
[407905169,1772905839696,-166.81824,9.589e-05,2]
[407905170,1772905839705,-166.81824,9.589e-05,2]
[407905171,1772905839715,-166.818238,9.589e-05,2]
[407905172,1772905839724,-151.0,9.589e-05,2]
[407905173,1772905839733,-151.0,9.589e-05,2]
[407905174,1772905839743,-151.0,9.589e-05,2]
[407905175,1772905839754,-151.0,9.589e-05,2]
[407905176,1772905839764,-151.0,9.589e-05,2]
[407905177,1772905839774,-151.0,9.589e-05,2]
[407905178,1772905839783,-151.0,9.589e-05,2]
[407905179,1772905839792,-151.0,9.589e-05,2]
[407905180,1772905839801,-151.0,9.589e-05,2]
[407905181,1772905839811,-151.0,9.589e-05,2]
[407905182,1772905839821,-151.0,9.589e-05,2]
[407905183,1772905839830,-151.0,9.589e-05,2]
[407905184,1772905839839,-151.0,9.589e-05,2]
[407905185,1772905839848,-151.0,9.589e-05,2]
[407905186,1772905839856,-151.0,9.589e-05,2]
[407905187,1772905839865,-151.0,9.589e-05,2]
[407905188,1772905839874,-151.0,9.589e-05,2]
[407905189,1772905839883,-151.0,9.589e-05,2]
[407905191,1772905839893,-151.0,9.589e-05,2]
[407905193,1772905839903,-253.372282,9.589e-05,2]
[407905194,1772905839912,-253.372282,9.589e-05,2]
[407905196,1772905839921,-253.372282,9.589e-05,2]
[407905198,1772905839930,-253.372282,9.589e-05,2]
[407905200,1772905839939,-253.372282,9.589e-05,2]
[407905202,1772905839949,-253.372282,9.589e-05,2]
[407905204,1772905839958,-253.372282,9.589e-05,2]
[407905206,1772905839967,-253.372282,9.589e-05,2]
[407905208,1772905839976,-253.372282,9.589e-05,2]
[407905210,1772905839986,-253.372282,9.589e-05,2]
[407905213,1772905839996,-253.372282,9.589e-05,2]
[407905214,1772905840005,-253.372282,9.589e-05,2]
[407905216,1772905840014,-253.372282,9.589e-05,2]
[407905218,1772905840023,-253.372282,9.589e-05,2]
[407905221,1772905840035,-253.372282,9.589e-05,2]
[407905223,1772905840045,-253.372282,9.589e-05,2]
[407905224,1772905840054,-151.0,9.589e-05,2]
[407905225,1772905840065,-253.372282,9.589e-05,2]
[407905226,1772905840075,-208.084452,9.589e-05,2]
[407905227,1772905840084,-253.372282,9.589e-05,2]
[407905228,1772905840094,-253.372282,9.589e-05,2]
[407905230,1772905840103,-253.372272,9.589e-05,2]
[407905231,1772905840112,-694.30745,9.589e-05,2]
[407905232,1772905840121,-694.30745,9.589e-05,2]
[407905233,1772905840131,-694.30745,9.589e-05,2]
[407905234,1772905840142,-694.30745,9.589e-05,2]
[407905235,1772905840151,-694.30745,9.589e-05,2]
[407905236,1772905840161,-694.30745,9.589e-05,2]
[407905237,1772905840170,-694.30745,9.589e-05,2]
[407905238,1772905840179,-694.30745,9.589e-05,2]
[407905239,1772905840189,-694.30745,9.589e-05,2]
[407905240,1772905840198,-694.30745,9.589e-05,2]
[407905242,1772905840207,-694.30745,9.589e-05,2]
[407905244,1772905840217,-694.30745,9.589e-05,2]
[407905246,1772905840226,-694.30745,9.589e-05,2]
[407905248,1772905840235,-694.30745,9.589e-05,2]
[407905250,1772905840244,-694.30745,9.589e-05,2]
[407905252,1772905840254,-694.30745,9.589e-05,2]
[407905254,1772905840263,-694.30745,9.589e-05,2]
[407905256,1772905840272,-694.30745,9.589e-05,2]
[407905258,1772905840283,-694.30745,9.589e-05,2]
[407905260,1772905840292,-300.924425,9.589e-05,2]
[407905262,1772905840302,-694.307455,9.589e-05,2]
[407905264,1772905840313,-300.924425,9.589e-05,2]
[407905296,1772905840609,-300.924425,9.589e-05,2]
[407905299,1772905840620,-300.924425,9.589e-05,2]
[407905301,1772905840629,-300.924425,9.589e-05,2]
[407905302,1772905840638,-300.924425,9.589e-05,2]
[407905304,1772905840648,-300.924425,9.589e-05,2]
[407905307,1772905840657,-300.924425,9.589e-05,2]
[407905309,1772905840666,-300.924425,9.589e-05,2]
[407905310,1772905840675,-300.924425,9.589e-05,2]
[407905312,1772905840684,-300.924425,9.589e-05,2]
[407905314,1772905840693,-300.924425,9.589e-05,2]
[407905316,1772905840702,-300.924425,9.589e-05,2]
[407905318,1772905840712,-300.924425,9.589e-05,2]
[407905320,1772905840721,-300.924425,9.589e-05,2]
[407905322,1772905840731,-300.924425,9.589e-05,2]
[407905324,1772905840740,-300.924425,9.589e-05,2]
[407905326,1772905840749,-300.924425,9.589e-05,2]
[407905328,1772905840758,-300.924425,9.589e-05,2]
[407905330,1772905840767,-300.924421,9.589e-05,2]
[407905332,1772905840776,-3092.96547559,9.728e-05,2]
[407905334,1772905840786,-5000.0,0.0001,15]
[407905336,1772905840795,-151.0,0.0001,2]
[407905339,1772905840804,-151.0,0.0001,2]
[407905340,1772905840813,-151.0,0.0001,2]
[407905342,1772905840823,-151.0,0.0001,2]
[407905344,1772905840832,-151.0,0.0001,2]
[407905346,1772905840841,-151.0,0.0001,2]
[407905348,1772905840850,-151.0,0.0001,2]
[407905350,1772905840860,-151.0,0.0001,2]
[407905352,1772905840869,-151.0,0.0001,2]
[407905354,1772905840878,-151.0,0.0001,2]
[407905356,1772905840887,-151.0,0.0001,2]
[407905358,1772905840896,-151.0,0.0001,2]
[407905360,1772905840905,-151.0,0.0001,2]
[407905362,1772905840914,-151.0,0.0001,2]
[407905364,1772905840924,-151.0,0.0001,2]
[407905366,1772905840933,-151.0,0.0001,2]
[407905368,1772905840943,-151.0,0.0001,2]
[407905370,1772905840951,-151.0,0.0001,2]
[407905372,1772905840961,-151.0,0.0001,2]
[407905374,1772905840970,-151.0,0.0001,2]
[407905376,1772905840979,-200.02800392,0.00010043,5]
[407905378,1772905840988,-3207.40519818,0.00010276,2]
[407905380,1772905840998,-161.31399345,0.00010415,2]
[407905382,1772905841007,-2014.75206014,0.00010824,2]
[407905397,1772905841147,208.44,0.00023515,30]
[407905406,1772905841218,277.92,0.0002559,30]
[407905415,1772905841329,347.4,0.00027665,30]
[407905446,1772905841678,416.88,0.0002974,30]
[407905565,1772905845788,-6492.46024368,4.059e-05,2]
[407905566,1772905845798,-443.303642,9.589e-05,2]
[407905567,1772905845807,-443.303642,9.589e-05,2]
[407905568,1772905845816,-443.303642,9.589e-05,2]
[407905569,1772905845825,-443.303642,9.589e-05,2]
[407905570,1772905845834,-443.303642,9.589e-05,2]
[407905571,1772905845843,-443.303642,9.589e-05,2]
[407905572,1772905845852,-443.303642,9.589e-05,2]
[407905573,1772905845861,-443.303642,9.589e-05,2]
[407905574,1772905845869,-443.303642,9.589e-05,2]
[407905575,1772905845879,-443.303642,9.589e-05,2]
[407905576,1772905845888,-443.303642,9.589e-05,2]
[407905577,1772905845898,-443.303642,9.589e-05,2]
[407905578,1772905845907,-443.303642,9.589e-05,2]
[407905579,1772905845916,-1311.32713038,0.00010824,2]
[407905580,1772905845926,-151.0,0.00011,2]
[407905581,1772905845935,-151.0,0.00011,2]
[407905582,1772905845945,-151.0,0.00011,2]
[407905583,1772905845955,-151.0,0.00011,2]
[407905585,1772905845965,-500.0,0.00011,2]
[407905587,1772905845975,-151.0,0.00011,2]
[407905589,1772905845985,-151.0,0.00011,2]
[407905590,1772905845995,-200.02800392,0.00011043,5]
[407905591,1772905846004,-161.31399345,0.0001107,2]
[407905592,1772905846016,-180.12245602,0.0001107,2]
[407905593,1772905846026,-197.29338263,0.0001107,2]
[407905594,1772905846037,-1046.4796988,0.00011372,2]
[407905595,1772905846052,-2402.66442177,0.00011372,2]
[407905596,1772905846061,-350.13911204,0.00011435,2]
[407905598,1772905846071,-250.43120901,0.00011743,2]
[407905599,1772905846081,-3576.76245303,0.0001192,2]
[407905600,1772905846091,-200.02800392,0.00012043,5]
[407905601,1772905846102,-161.31399344,0.00012128,2]
[407905602,1772905846112,-10000.0,0.00012329,2]
[407905603,1772905846122,-3709.10266379,0.00012468,2]
[407905604,1772905846133,-11830.40124309,0.00012558,3]
[407905605,1772905846143,-3846.33946235,0.00013016,2]
[407905606,1772905846152,-215.45612264,0.00013044,5]
[407905607,1772905846162,-386.78157726,0.00013435,2]
[407905608,1772905846172,-3988.65402246,0.00013564,2]
[407905609,1772905846181,-156.0,0.00013699,2]
[407905610,1772905846191,-156.0,0.00013699,2]
[407905611,1772905846200,-180.02160259,0.00013699,2]
[407905612,1772905846209,-3652.594993,0.00013699,2]
[407905613,1772905846219,-1000.0,0.00013699,2]
[407905614,1772905846228,-500.0,0.00013699,2]
[407905615,1772905846239,-500.0,0.00013699,2]
[407905616,1772905846248,-500.0,0.00013699,2]
[407905617,1772905846257,-500.0,0.00013699,2]
[407905618,1772905846267,-522.88617445,0.00013699,2]
[407905619,1772905846277,-527.74399271,0.00013699,2]
[407905620,1772905846288,-178.45598645,0.00013699,2]
[407905621,1772905846297,-2000.0,0.00013699,7]
[407905622,1772905846307,-1000.0,0.00013699,2]
[407905623,1772905846316,-160.0,0.000137,2]
[407905624,1772905846326,-160.0,0.000142,2]
[407905625,1772905846336,-390.55347589,0.00014247,2]
[407905626,1772905846345,-1000.0,0.00014247,2]
[407905627,1772905846355,-1134.6235031,0.00014247,2]
[407905628,1772905846364,-1000.0,0.00014247,2]
[407905629,1772905846374,-12463.04598701,0.00014444,2]
[407905630,1772905846386,-882.6800012,0.00014444,2]
[407905631,1772905846397,-342.61999997,0.00014444,2]
[407905632,1772905846409,-3845.15198489,0.00014444,2]
[407905633,1772905846426,-430.2784889,0.00014444,2]
[407905634,1772905847205,-3419.35181551,4e-05,2]
[407905635,1772905847216,-60672.29,4e-05,2]
[407905637,1772905914424,242.0,0.00026361,120]
[407905638,1772905915286,1496.2,0.00030136,120]
[407905639,1772905920120,20129.0,0.0003,30]
[407905645,1772905956333,3946.92,0.0003,30]
[407905649,1772906028365,207.0,0.00029671,35]
[407905650,1772906041346,20656.39,0.0003,30]
[407905652,1772906067317,4471.06,0.0003,30]
[407905655,1772906079650,17406.55,0.0003,30]
[407905656,1772906081297,200.0,0.00030137,30]
[407905657,1772906098141,1000.0,0.0003013,30]
[407905658,1772906100583,155.0,0.00030137,30]
[407905659,1772906133670,6578.47,0.00030136,120]
[407905660,1772906215558,20000.0,0.0003013,30]
[407905661,1772906220042,5016.19165,0.00030137,30]
[407905662,1772906255529,3815.36,0.0003,30]
[407905663,1772906279618,282.206272,0.00028767,60]
[407905666,1772906343146,208.0,0.00028575,30]
[407905668,1772906424378,-818.18850861,3.234e-05,2]
[407905669,1772906424410,-24.30346506,3.251e-05,2]
[407905670,1772906424456,-148.32715574,3.251e-05,2]
[407905671,1772906454052,-842.49197367,3.267e-05,2]
[407905672,1772906493654,10000.0,0.00030137,30]
[407905673,1772906520106,1433.86,0.00030136,120]
[407905674,1772906556863,230.84321484,0.0001536,120]
[407905676,1772906558622,7134.86362648,0.0003,120]
[407905682,1772906564766,3688.18,0.0003,30]
[407905683,1772906565533,208.87189222,1.5e-05,120]
[407905684,1772906565619,5111.0416918,0.000158,120]
[407905685,1772906583658,5000.0,0.00030137,120]
[407905686,1772906621725,87970.0,0.0003013,30]
[407905688,1772906656392,1.57387153,0.0003013,30]
[407905689,1772906691233,151.0,0.000114,120]
[407905690,1772906733215,151.0,0.000114,120]
[407905691,1772906751066,159.025432,2.862e-05,31]
[407905692,1772906751262,159.025432,2.862e-05,41]
[407905693,1772906751466,159.025432,2.862e-05,51]
[407905694,1772906751660,159.025432,2.862e-05,60]
[407905695,1772906751858,159.025432,2.862e-05,70]
[407905696,1772906752273,159.025432,2.862e-05,80]
[407905697,1772906752492,159.025432,2.862e-05,90]
[407905698,1772906752896,159.025432,2.862e-05,100]
[407905699,1772906753104,159.025432,2.862e-05,110]
[407905700,1772906753292,159.025432,2.862e-05,119]
[407905701,1772906775134,151.0,0.000114,120]
[407905702,1772906805687,151.0,0.000114,120]
[407905704,1772906839021,151.0,0.000114,120]
[407905705,1772906880396,151.0,0.000114,120]
[407905706,1772906913879,151.0,0.000114,120]
[407905707,1772906952121,151.0,0.000114,120]
[407905710,1772906989385,151.0,0.000114,120]
[407905711,1772907020512,151.0,0.000114,120]
[407905765,1772907032485,-1499.35323544,2.706e-05,2]
[407905770,1772907032497,-2156.77541057,2.706e-05,2]
[407905773,1772907032508,-1343.87135399,2.706e-05,2]
[407905776,1772907032518,-780.17588962,2.732e-05,2]
[407905779,1772907032530,-419.82411038,2.732e-05,2]
[407905782,1772907032539,-13.2571025,2.733e-05,2]
[407905786,1772907032551,-4401.9446237,2.733e-05,2]
[407905790,1772907032563,-4486.08894187,2.733e-05,2]
[407905793,1772907032572,-169.17800838,2.847e-05,2]
[407905795,1772907032582,-159.025432,2.862e-05,2]
[407905798,1772907032591,-159.025432,2.862e-05,11]
[407905800,1772907032600,-159.025432,2.862e-05,21]
[407905802,1772907032609,-245.41,3.3e-05,2]
[407905804,1772907032618,-250.0,3.743e-05,2]
[407905806,1772907032628,-300.0,3.898e-05,2]
[407905808,1772907032637,-300.0,3.899e-05,2]
[407905810,1772907032647,-300.0,3.899e-05,2]
[407905812,1772907032657,-533.21202339,3.9e-05,2]
[407905813,1772907032666,-4134.37974897,3.9e-05,2]
[407906154,1772907038529,-25778.03787128,3.9e-05,2]
[407906467,1772907046426,-383.71407802,3.9e-05,2]
[407906468,1772907046478,-231385.54543804,3.9e-05,2]
[407906469,1772907060090,151.0,0.000114,120]
[407906470,1772907093548,151.0,0.000114,120]
[407906471,1772907130149,151.0,0.000114,120]
[407906472,1772907172459,151.0,0.000114,120]
[407906473,1772907203004,151.0,0.000114,120]
[407906474,1772907240519,151.0,0.000114,120]
[407906475,1772907272074,151.0,0.000114,120]
[407906477,1772907302248,151.0,0.000114,120]
[407906478,1772907342786,151.0,0.000114,120]
[407906481,1772907379461,151.0,0.000114,120]
[407906482,1772907413487,151.0,0.000114,120]
[407906485,1772907445193,151.0,0.000114,120]
[407906486,1772907482501,151.0,0.000114,120]
[407906488,1772907520126,151.0,0.000114,120]
[407906489,1772907558698,151.0,0.000114,120]
[407906490,1772907589952,151.0,0.000114,120]
[407906491,1772907622663,151.0,0.000114,120]
[407906492,1772907662071,151.0,0.000114,120]
[407906493,1772907700332,151.0,0.000114,120]
[407906494,1772907732382,151.0,0.000114,120]
[407906495,1772907769905,151.0,0.000114,120]
[407906496,1772907813370,151.0,0.000114,120]
[407906497,1772907849733,151.0,0.000114,120]
[407906498,1772907882820,151.0,0.000114,120]
[407906499,1772907915241,151.0,0.000114,120]
[407906500,1772907963077,151.0,0.000114,120]
[407906501,1772908002260,151.0,0.000114,120]
[407906504,1772908038837,151.0,0.000114,120]
[407906505,1772908082164,151.0,0.000114,120]
[407906506,1772908120086,151.0,0.000114,120]
[407906507,1772908160272,151.0,0.000114,120]
[407906510,1772908201812,151.0,0.000114,120]
[407906511,1772908224134,-2087.47085234,3.492e-05,2]
[407906531,1772908231552,-830.65800602,3.492e-05,2]
[407906699,1772908237784,-2081.87114164,3.492e-05,2]
[407906700,1772908237794,-174.56944725,3.554e-05,2]
[407906701,1772908237808,-300.0,3.598e-05,2]
[407906702,1772908237817,-300.0,3.598e-05,2]
[407906703,1772908237827,-1200.0,3.598e-05,2]
[407906704,1772908237838,-3231.42351912,3.6e-05,2]
[407906706,1772908237847,-8453.46907418,3.6e-05,2]
[407906708,1772908237857,-540.22519995,3.6e-05,2]
[407906710,1772908237866,-96132.01600508,3.6e-05,2]
[407906713,1772908238676,-1236.73712935,3.6e-05,2]
[407906719,1772908240032,151.0,0.000114,120]
[407906749,1772908240317,-587.0,3.564e-05,2]
[407906752,1772908240328,-967.61586635,3.564e-05,2]
[407906929,1772908242832,-352.86948732,3.564e-05,2]
[407906930,1772908242843,-300.0,3.564e-05,2]
[407906931,1772908242858,-2534.73802082,3.564e-05,2]
[407906932,1772908242869,-1540.817128,3.564e-05,2]
[407906933,1772908242880,-1891.0220345,3.564e-05,2]
[407906934,1772908242995,-600.0,3.564e-05,2]
[407906945,1772908245633,-5000.0,3.528e-05,2]
[407906946,1772908245643,-5142.85,3.564e-05,2]
[407906947,1772908245654,-282.601,3.564e-05,2]
[407906948,1772908245690,-796.3799828,3.564e-05,2]
[407906949,1772908245704,-2915.36017085,3.564e-05,2]
[407906950,1772908245715,-8546.17102417,3.6e-05,2]
[407906951,1772908245747,-5767.22242755,3.6e-05,2]
[407906952,1772908283227,151.0,0.000114,120]
[407906953,1772908322426,151.0,0.000114,120]
[407906954,1772908323638,-483.60225534,0.00036611,120]
[407906955,1772908323680,-3005.78,0.00036611,120]
[407906956,1772908323719,-2078.06,0.00036611,120]
[407906957,1772908323757,-1484.87,0.00036611,120]
[407906958,1772908323795,-500.0,0.00036611,120]
[407906959,1772908323843,-594.2,0.00036611,120]
[407906960,1772908323887,-3005.78,0.00036611,120]
[407906961,1772908323921,-2078.06,0.00036611,120]
[407906962,1772908324277,-1484.87,0.00036611,120]
[407906963,1772908324316,-594.2,0.00036611,120]
[407906964,1772908324353,-500.0,0.00036611,120]
[407906965,1772908324390,-3005.78,0.00036611,120]
[407906966,1772908324428,-2078.06,0.00036611,120]
[407906967,1772908324464,-1484.87,0.00036611,120]
[407906968,1772908324502,-594.2,0.00036611,120]
[407906969,1772908324550,-500.0,0.00036611,120]
[407906970,1772908324594,-3005.78,0.00036611,120]
[407906971,1772908324634,-2078.06,0.00036611,120]
[407906972,1772908324671,-594.30748234,0.00036611,120]
[407906973,1772908324707,-1484.87,0.00036611,120]
[407906974,1772908324749,-3005.78,0.00036611,120]
[407906975,1772908324797,-500.0,0.00036611,120]
[407906976,1772908324840,-500.0,0.00036611,120]
[407906977,1772908324879,-500.0,0.00036611,120]
[407906978,1772908324920,-2078.06,0.00036611,120]
[407906979,1772908324963,-500.0,0.00036611,120]
[407906980,1772908325007,-3005.78,0.00036611,120]
[407906981,1772908325051,-1484.87,0.00036611,120]
[407906982,1772908325096,-500.0,0.00036611,120]
[407906983,1772908325140,-624.62078974,0.00036611,120]
[407906984,1772908325181,-2078.06,0.00036611,120]
[407906985,1772908325227,-3005.78,0.00036611,120]
[407906986,1772908325275,-152.03068551,0.00036611,120]
[407906987,1772908325321,-500.0,0.00036611,120]
[407906988,1772908325370,-1484.87,0.00036611,120]
[407906989,1772908325416,-2078.06,0.00036611,120]
[407906990,1772908325461,-3005.78,0.00036611,120]
[407906991,1772908325504,-500.0,0.00036611,120]
[407906992,1772908325545,-1484.87,0.00036611,120]
[407906993,1772908325585,-3005.78,0.00036611,120]
[407906994,1772908325624,-2078.06,0.00036611,120]
[407906995,1772908325672,-500.0,0.00036611,120]
[407906996,1772908325719,-1484.87,0.00036611,120]
[407906997,1772908325762,-500.0,0.00036611,120]
[407906998,1772908325804,-3005.78,0.00036611,120]
[407906999,1772908325844,-2078.06,0.00036611,120]
[407907000,1772908325883,-500.0,0.00036611,120]
[407907001,1772908325921,-1484.87,0.00036611,120]
[407907002,1772908325959,-248.76454486,0.00036611,120]
[407907003,1772908325999,-500.71888123,0.00036611,120]
[407907004,1772908326042,-3005.78,0.00036611,120]
[407907005,1772908326084,-2078.06,0.00036611,120]
[407907006,1772908326123,-500.0,0.00036611,120]
[407907007,1772908326160,-1484.87,0.00036611,120]
[407907008,1772908326200,-3005.78,0.00036611,120]
[407907009,1772908326238,-2078.28,0.00036611,120]
[407907010,1772908326276,-500.0,0.00036611,120]
[407907011,1772908326317,-889.4,0.00036611,120]
[407907012,1772908326358,-1484.87,0.00036611,120]
[407907013,1772908326401,-3005.78,0.00036611,120]
[407907014,1772908326442,-500.0,0.00036611,120]
[407907015,1772908326481,-889.4,0.00036611,120]
[407907016,1772908326524,-3005.78,0.00036611,120]
[407907017,1772908326561,-1484.87,0.00036611,120]
[407907018,1772908326597,-500.0,0.00036611,120]
[407907019,1772908326634,-500.0,0.00036611,120]
[407907020,1772908326669,-500.0,0.00036611,120]
[407907021,1772908326704,-3005.78,0.00036611,120]
[407907022,1772908326739,-1484.98275094,0.00036611,120]
[407907023,1772908326774,-889.4,0.00036611,120]
[407907024,1772908326810,-500.0,0.00036611,120]
[407907025,1772908326845,-500.0,0.00036611,120]
[407907026,1772908326880,-500.66327459,0.00036611,120]
[407907027,1772908326916,-3005.78,0.00036611,120]
[407907028,1772908326950,-500.0,0.00036611,120]
[407907029,1772908326985,-314.24602805,0.00036611,120]
[407907030,1772908327024,-889.4,0.00036611,120]
[407907031,1772908327064,-3005.78,0.00036611,120]
[407907032,1772908327106,-500.0,0.00036611,120]
[407907033,1772908327145,-526.97,0.00036611,120]
[407907034,1772908327187,-889.4,0.00036611,120]
[407907035,1772908327238,-3005.98354554,0.00036611,120]
[407907036,1772908327280,-500.0,0.00036611,120]
[407907037,1772908327321,-526.97,0.00036611,120]
[407907038,1772908327362,-889.4,0.00036611,120]
[407907039,1772908327404,-500.0,0.00036611,120]
[407907040,1772908327445,-526.97,0.00036611,120]
[407907041,1772908327484,-500.0,0.00036611,120]
[407907042,1772908327525,-889.4,0.00036611,120]
[407907043,1772908327565,-526.97,0.00036611,120]
[407907044,1772908327608,-500.0,0.00036611,120]
[407907045,1772908327649,-889.4,0.00036611,120]
[407907046,1772908327687,-526.97,0.00036611,120]
[407907047,1772908327726,-526.97,0.00036611,120]
[407907048,1772908327765,-500.0,0.00036611,120]
[407907049,1772908327805,-889.4,0.00036611,120]
[407907050,1772908327846,-544.01566574,0.00036611,120]
[407907051,1772908327886,-500.86,0.00036611,120]
[407907052,1772908327923,-380.43286896,0.00036611,120]
[407907053,1772908327958,-526.97,0.00036611,120]